bitfinex/quotes_SOLUSD_20241103
["timestamp","ask_amount","ask_price","bid_price","bid_amount"]
[1730676965182,18.27537802,162.0,161.95,52.4832]
[1730676965478,18.27537802,161.98,161.95,21.6112]
[1730676965888,18.27537802,161.99,161.95,21.6112]
[1730676967184,24.44817802,162.0,161.95,21.6112]
[1730676967482,18.27537802,162.0,161.95,39.88657802]
[1730676967685,18.27537802,162.0,161.95,21.6112]
[1730676970183,31.8676,162.05,161.95,21.6112]
[1730676970184,18.27537802,161.98,161.95,21.6112]
[1730676971283,11.72360086,161.98,161.95,21.6112]
[1730676972388,11.72360086,161.99,161.95,21.6112]
[1730676972591,11.72360086,161.98,161.95,21.6112]
[1730676973682,11.72360086,161.99,161.95,21.6112]
[1730676974479,11.72360086,162.04,161.98,11.72360086]
[1730676974972,11.72360086,162.03,161.98,11.72360086]
[1730676975171,11.72360086,162.05,161.99,11.72360086]
[1730676975376,16.4238,162.09,162.0,21.6048]
[1730676975377,11.72360086,162.04,162.0,21.6048]
[1730676975589,11.72360086,162.05,162.0,33.32840086]
[1730676975794,11.72360086,162.06,162.0,33.32840086]
[1730676976088,11.72360086,162.04,162.0,21.6048]
[1730676976278,11.72360086,162.02,161.99,22.1337]
[1730676976792,11.72360086,162.04,161.99,37.5667]
[1730676977396,18.3047261,162.04,161.99,55.8714261]
[1730676977770,18.3047261,162.05,161.99,55.8714261]
[1730676977970,18.3047261,162.07,162.01,18.3047261]
[1730676978288,6.6491,162.1,161.99,68.4328]
[1730676978289,18.3047261,162.08,162.02,18.3047261]
[1730676978671,18.3047261,162.07,162.02,18.3047261]
[1730676978992,18.3047261,162.06,162.01,18.3047261]
[1730676979173,18.3047261,162.05,162.0,18.3047261]
[1730676979378,18.3047261,162.04,161.99,55.8714261]
[1730676980192,18.3047261,162.05,161.99,55.8714261]
[1730676980493,18.3047261,162.07,162.01,18.3047261]
[1730676981401,18.3047261,162.06,162.0,18.3047261]
[1730676982186,18.3047261,162.06,162.01,18.3047261]
[1730676982598,18.3047261,162.06,162.0,18.3047261]
[1730676982786,18.3047261,162.05,161.99,55.8714261]
[1730676983186,18.3047261,162.05,162.0,18.3047261]
[1730676983877,18.3047261,162.05,162.01,6.1724]
[1730676984086,18.3047261,162.06,162.01,6.1724]
[1730676984281,18.3047261,162.05,162.01,6.1724]
[1730676984795,18.3047261,162.05,162.01,21.6035]
[1730676985181,24.4749261,162.07,162.01,39.9082261]
[1730676986883,18.3047261,162.07,162.01,39.9082261]
[1730676987689,18.3047261,162.1,162.04,18.3047261]
[1730676987893,18.3047261,162.09,162.04,18.3047261]
[1730676988096,18.3047261,162.09,162.03,18.3047261]
[1730676988878,18.3047261,162.09,162.04,21.5995]
[1730676990399,18.3047261,162.1,162.04,39.9042261]
[1730676990593,18.3047261,162.11,162.05,18.3047261]
[1730676990793,27.73975316,162.13,162.05,15.6126]
[1730676990995,9.43502706,162.13,162.09,18.3047261]
[1730676991392,9.43502706,162.13,162.12,18.3047261]
[1730676991785,9.43502706,162.13,162.11,18.3047261]
[1730676992303,9.43502706,162.13,162.1,18.3047261]
[1730676992497,9.43502706,162.13,162.11,18.3047261]
[1730676993785,9.43502706,162.13,162.12,6.1682]
[1730676994599,9.43502706,162.13,162.12,24.4729261]
[1730676994795,9.43502706,162.13,162.12,40.0855261]
[1730676994999,24.4700261,162.2,162.12,55.5061261]
[1730676995202,24.4700261,162.2,162.14,18.3047261]
[1730676995409,18.3047261,162.19,162.14,18.3047261]
[1730676996203,18.3047261,162.19,162.15,6.1671]
[1730676996501,6.1653,162.2,162.15,6.1671]
[1730676996502,18.3047261,162.2,162.15,39.8896261]
[1730676996705,0.3182166,162.22,162.18,18.3047261]
[1730676997413,0.3182166,162.22,162.21,18.3047261]
[1730676998190,0.3182166,162.22,162.2,24.4696261]
[1730676998797,0.3182166,162.22,162.2,39.8826261]
[1730677000503,0.3182166,162.22,162.21,18.3047261]
[1730677003116,0.3182166,162.22,162.21,24.4695261]
[1730677004290,0.3182166,162.22,162.21,48.2464101]
[1730677005401,0.3182166,162.22,162.21,24.4695261]
[1730677007015,0.3182166,162.22,162.21,48.2464101]
[1730677007311,0.3182166,162.22,162.21,48.3719001]
[1730677008992,24.7840427,162.31,162.3,18.3047261]
[1730677008993,0.3182166,162.31,162.3,18.3047261]
[1730677011411,0.3182166,162.31,162.3,24.4661261]
[1730677014294,0.3182166,162.31,162.29,33.7088261]
[1730677014516,0.3182166,162.31,162.29,15.4041]
[1730677014711,0.3182166,162.31,162.29,39.8706261]
[1730677015019,0.3182166,162.31,162.3,18.3047261]
[1730677017820,0.3182166,162.31,162.29,39.8706261]
[1730677018620,0.3182166,162.31,162.27,18.3047261]
[1730677020117,0.3182166,162.31,162.25,21.5716]
[1730677020118,18.3047261,162.3,162.25,6.1633]
[1730677020430,0.3182166,162.31,162.27,18.3047261]
[1730677020721,0.3182166,162.31,162.25,21.5716]
[1730677020722,18.3047261,162.3,162.25,21.5716]
[1730677021022,18.3047261,162.29,162.25,21.5716]
[1730677021315,6.4792166,162.31,162.21,18.3047261]
[1730677021316,18.3047261,162.27,162.21,18.3047261]
[1730677021621,18.3047261,162.26,162.21,39.8808261]
[1730677022421,22.6704166,162.31,162.21,39.8808261]
[1730677022422,18.3047261,162.25,162.21,21.5761]
[1730677022604,18.3047261,162.24,162.21,21.5761]
[1730677022798,18.3047261,162.23,162.21,15.4113]
[1730677022999,18.3047261,162.22,162.21,15.4113]
[1730677023414,18.3047261,162.22,162.17,6.41964665]
[1730677023620,18.3047261,162.21,162.18,6.1656]
[1730677024107,18.3047261,162.2,162.17,21.5817]
[1730677024620,18.3047261,162.25,162.17,21.5817]
[1730677024843,18.3047261,162.27,162.22,18.3047261]
[1730677025019,18.3047261,162.26,162.21,18.3047261]
[1730677025915,18.3047261,162.26,162.22,6.1644]
[1730677026125,18.3047261,162.25,162.22,6.1644]
[1730677026419,18.3047261,162.26,162.22,6.1644]
[1730677026930,18.3047261,162.26,162.22,21.5755]
[1730677027921,18.3047261,162.25,162.22,15.4111]
[1730677028713,18.3047261,162.26,162.22,15.4111]
[1730677031031,6.1626,162.27,162.22,15.4111]
[1730677031032,18.3047261,162.27,162.22,39.8802261]
[1730677031229,18.3047261,162.28,162.23,18.3047261]
[1730677031408,18.3047261,162.29,162.24,18.3047261]
[1730677031607,18.3047261,162.3,162.25,18.3047261]
[1730677032228,18.3047261,162.29,162.24,18.3047261]
[1730677032529,18.3047261,162.28,162.22,56.4514261]
[1730677032830,18.3047261,162.28,162.23,18.3047261]
[1730677033627,24.4664261,162.3,162.24,39.8776261]
[1730677033839,18.6229427,162.31,162.26,18.3047261]
[1730677034026,18.3047261,162.29,162.24,21.5729]
[1730677034331,18.3047261,162.26,162.21,33.7167261]
[1730677034913,0.12549,162.3,162.22,18.3047261]
[1730677034914,18.3047261,162.28,162.22,18.3047261]
[1730677035441,18.3047261,162.27,162.22,18.3047261]
[1730677035605,18.3047261,162.28,162.23,18.3047261]
[1730677037325,24.4665261,162.29,162.24,21.5729]
[1730677037525,18.3047261,162.28,162.24,21.5729]
[1730677038242,18.3047261,162.26,162.24,15.4092]
[1730677038721,18.3047261,162.27,162.24,15.4092]
[1730677040638,18.3047261,162.26,162.24,15.4092]
[1730677041137,18.3047261,162.27,162.24,15.4092]
[1730677041721,18.3047261,162.25,162.22,6.1644]
[1730677042725,18.3047261,162.27,162.22,18.3047261]
[1730677043033,18.3047261,162.27,162.21,18.3047261]
[1730677043423,18.3047261,162.26,162.21,18.3047261]
[1730677044041,18.3047261,162.26,162.21,21.5769]
[1730677044738,18.3047261,162.26,162.21,39.8816261]
[1730677045316,18.3047261,162.26,162.21,15.4121]
[1730677045519,18.3047261,162.25,162.21,15.4121]
[1730677045933,18.3047261,162.23,162.21,15.4121]
[1730677047453,18.3047261,162.25,162.21,15.4121]
[1730677051233,18.3047261,162.22,162.18,6.42795786]
[1730677051434,18.3047261,162.2,162.18,6.42795786]
[1730677051640,18.3047261,162.21,162.17,15.4155]
[1730677051835,18.3047261,162.21,162.17,21.84203127]
[1730677052045,18.3047261,162.22,162.17,33.7202261]
[1730677052348,0.12549,162.26,162.17,33.7202261]
[1730677052349,18.3047261,162.23,162.18,33.7196261]
[1730677052929,18.3047261,162.24,162.18,33.7196261]
[1730677053161,18.3047261,162.23,162.18,39.8855261]
[1730677053453,18.3047261,162.21,162.18,21.5808]
[1730677053754,18.3047261,162.23,162.18,21.5808]
[1730677054255,18.3047261,162.24,162.18,39.8855261]
[1730677054432,18.3047261,162.23,162.18,39.8855261]
[1730677054749,18.3047261,162.24,162.18,39.8855261]
[1730677054961,18.3047261,162.25,162.19,18.3047261]
[1730677055326,18.3047261,162.23,162.18,39.8855261]
[1730677055529,18.3047261,162.24,162.18,39.8855261]
[1730677055746,18.3047261,162.23,162.18,39.8855261]
[1730677059362,11.68806326,162.23,162.18,33.26886326]
[1730677060440,6.1632,162.26,162.18,33.26886326]
[1730677060757,11.68806326,162.24,162.18,33.26886326]
[1730677061343,11.68806326,162.23,162.18,21.5808]
[1730677063371,11.68806326,162.24,162.18,33.26886326]
[1730677065363,11.68806326,162.26,162.21,11.68806326]
[1730677065664,11.68806326,162.25,162.2,11.68806326]
[1730677065961,11.68806326,162.26,162.2,11.68806326]
[1730677066455,11.68806326,162.26,162.21,21.5769]
[1730677066670,11.68806326,162.25,162.21,21.5769]
[1730677067761,11.68806326,162.26,162.21,21.5769]
[1730677067941,11.68806326,162.26,162.21,33.26496326]
[1730677068660,11.68806326,162.26,162.21,21.5769]
[1730677068842,11.68806326,162.27,162.21,33.26496326]
[1730677069035,11.68806326,162.27,162.23,15.4102]
[1730677070259,11.68806326,162.28,162.23,15.4102]
[1730677071663,11.68806326,162.27,162.23,15.4102]
[1730677072661,11.68806326,162.24,162.21,6.1648]
[1730677073639,6.1618,162.29,162.21,6.1648]
[1730677073640,11.68806326,162.23,162.21,6.1648]
[1730677073842,11.68806326,162.23,162.2,15.4128]
[1730677074044,11.68806326,162.28,162.22,11.68806326]
[1730677074266,11.68806326,162.28,162.23,11.68806326]
[1730677074557,11.68806326,162.27,162.22,11.68806326]
[1730677075359,11.68806326,162.29,162.24,11.68806326]
[1730677075659,17.84956326,162.3,162.24,11.68806326]
[1730677075856,11.68806326,162.29,162.25,6.1633]
[1730677076361,11.68806326,162.28,162.25,6.1633]
[1730677076960,11.68806326,162.28,162.24,21.5725]
[1730677077363,11.68806326,162.28,162.24,15.4088]
[1730677077666,11.68806326,162.28,162.24,21.5725]
[1730677081960,11.68806326,162.27,162.24,21.5725]
[1730677082366,11.68806326,162.28,162.24,21.5725]
[1730677082556,11.68806326,162.3,162.24,33.26056326]
[1730677083772,11.68806326,162.29,162.24,21.5725]
[1730677084349,18.16737986,162.31,162.25,11.68806326]
[1730677084650,11.68806326,162.3,162.24,33.26056326]
[1730677085157,11.68806326,162.29,162.24,33.26056326]
[1730677085356,11.68806326,162.27,162.24,15.4088]
[1730677085753,6.4793166,162.31,162.24,15.4088]
[1730677085754,17.85006326,162.29,162.24,15.4088]
[1730677086454,11.68806326,162.28,162.24,15.4088]
[1730677088067,11.68806326,162.28,162.24,21.5725]
[1730677089167,11.68806326,162.29,162.24,21.5725]
[1730677089360,11.68806326,162.29,162.24,33.26056326]
[1730677089560,17.84946326,162.3,162.24,33.26056326]
[1730677091471,0.3182166,162.31,162.26,11.68806326]
[1730677092662,0.3182166,162.31,162.27,6.1625]
[1730677094773,0.3182166,162.31,162.27,21.5689]
[1730677095358,12.00627986,162.31,162.27,21.5689]
[1730677096481,11.68806326,162.29,162.27,21.5689]
[1730677097582,11.68806326,162.29,162.27,15.4064]
[1730677098274,11.68806326,162.3,162.27,15.4064]
[1730677098576,11.68806326,162.29,162.24,11.68806326]
[1730677098758,11.68806326,162.3,162.25,11.68806326]
[1730677099189,11.68806326,162.29,162.23,64.08226326]
[1730677099379,11.68806326,162.29,162.24,11.68806326]
[1730677099565,11.68806326,162.28,162.23,21.5742]
[1730677099894,11.68806326,162.28,162.23,33.26226326]
[1730677101482,11.68806326,162.27,162.23,21.5742]
[1730677102475,11.68806326,162.26,162.22,15.4637]
[1730677102676,11.68806326,162.23,162.21,6.42622397]
[1730677102983,20.12549,162.29,162.18,21.7258]
[1730677102984,11.68806326,162.22,162.18,21.7258]
[1730677103659,11.68806326,162.2,162.17,6.42588752]
[1730677103859,11.68806326,162.2,162.16,6.1663]
[1730677104865,11.68806326,162.22,162.16,33.27116326]
[1730677107870,11.68806326,162.21,162.16,21.5831]
[1730677108177,11.68806326,162.2,162.16,21.5831]
[1730677112699,11.68806326,162.21,162.16,21.5831]
[1730677124191,11.68806326,162.21,162.16,33.27116326]
[1730677126088,11.68806326,162.22,162.16,33.27116326]
[1730677127585,17.85256326,162.22,162.16,33.27116326]
[1730677128375,11.68806326,162.21,162.16,33.27116326]
[1730677128798,11.68806326,162.22,162.16,33.27116326]
[1730677130199,17.85266326,162.22,162.16,33.27116326]
[1730677130795,11.68806326,162.21,162.16,33.27116326]
[1730677131400,11.68806326,162.22,162.16,33.27116326]
[1730677131898,11.68806326,162.21,162.16,33.27116326]
[1730677135497,11.68806326,162.2,162.16,21.5831]
[1730677135877,11.68806326,162.18,162.15,6.42493228]
[1730677136108,11.68806326,162.16,162.1,28.17026326]
[1730677136284,11.68806326,162.14,162.1,31.9047]
[1730677136593,11.68806326,162.15,162.1,38.0737]
[1730677137109,11.68806326,162.15,162.1,49.76176326]
[1730677137677,17.85486326,162.16,162.1,49.76176326]
[1730677138896,11.68806326,162.16,162.11,11.68806326]
[1730677139304,11.68806326,162.16,162.1,49.76176326]
[1730677140106,11.68806326,162.15,162.1,49.76176326]
[1730677143105,11.68806326,162.16,162.1,49.76176326]
[1730677143314,17.85446326,162.17,162.11,11.68806326]
[1730677145507,17.85446326,162.17,162.11,17.85636326]
[1730677145708,11.68806326,162.16,162.11,6.1683]
[1730677146302,17.85476326,162.16,162.11,6.1683]
[1730677147008,17.85476326,162.16,162.11,17.85636326]
[1730677148496,17.85476326,162.16,162.11,6.1683]
[1730677149215,17.85476326,162.16,162.11,17.85636326]
[1730677150502,11.68806326,162.18,162.13,11.68806326]
[1730677151102,11.68806326,162.17,162.11,33.27796326]
[1730677151417,11.68806326,162.16,162.11,33.27796326]
[1730677152194,11.68806326,162.17,162.11,33.27796326]
[1730677153019,11.68806326,162.17,162.12,11.68806326]
[1730677153221,11.68806326,162.17,162.13,6.1678]
[1730677155021,15.4125,162.21,162.16,11.68806326]
[1730677155022,11.68806326,162.21,162.16,11.68806326]
[1730677155322,11.68806326,162.22,162.17,11.68806326]
[1730677155904,11.68806326,162.21,162.16,11.68806326]
[1730677156106,11.68806326,162.27,162.2,11.68806326]
[1730677156308,11.68806326,162.27,162.16,69.57715304]
[1730677156309,11.68806326,162.27,162.22,11.68806326]
[1730677157103,11.68806326,162.28,162.23,11.68806326]
[1730677158126,17.85016326,162.29,162.24,11.68806326]
[1730677159123,11.68806326,162.28,162.23,11.68806326]
[1730677159308,17.85026326,162.28,162.23,17.85206326]
[1730677160020,6.1618,162.29,162.25,11.68806326]
[1730677160411,17.84986326,162.29,162.24,11.68806326]
[1730677162339,17.84986326,162.29,162.23,33.26226326]
[1730677164034,17.84986326,162.29,162.24,17.85166326]
[1730677164226,17.84986326,162.29,162.23,33.26226326]
[1730677165127,17.84986326,162.29,162.24,11.68806326]
[1730677165434,17.84986326,162.29,162.25,11.68806326]
[1730677165610,6.1618,162.29,162.25,11.68806326]
[1730677168043,6.1618,162.29,162.24,11.68806326]
[1730677168413,17.84946326,162.3,162.25,11.68806326]
[1730677168639,0.3182166,162.31,162.27,11.68806326]
[1730677169127,0.3182166,162.31,162.28,11.68806326]
[1730677170343,0.3182166,162.31,162.3,11.68806326]
[1730677170841,0.3182166,162.31,162.3,35.59043726]
[1730677171017,0.3182166,162.31,162.3,55.79043726]
[1730677171531,0.500099,162.34,162.3,55.79043726]
[1730677171532,0.500099,162.34,162.31,24.102374]
[1730677171831,0.500099,162.34,162.33,35.46494726]
[1730677172340,0.500099,162.34,162.33,41.62514726]
[1730677172524,0.500099,162.34,162.33,64.99763726]
[1730677172844,0.3182166,162.39,162.34,23.902374]
[1730677173135,0.3182166,162.39,162.38,11.68806326]
[1730677174437,0.3182166,162.39,162.38,41.62324726]
[1730677177123,0.3182166,162.39,162.38,17.84636326]
[1730677177540,0.3182166,162.39,162.38,6.1583]
[1730677179428,0.3182166,162.39,162.37,15.3965]
[1730677179920,0.3182166,162.39,162.37,27.08456326]
[1730677180117,0.3182166,162.39,162.38,11.68806326]
[1730677180338,0.3182166,162.39,162.37,27.08456326]
[1730677181656,0.3182166,162.39,162.38,11.68806326]
[1730677182033,0.3182166,162.39,162.37,33.24326326]
[1730677182532,0.3182166,162.39,162.37,21.5552]
[1730677186144,0.3182166,162.39,162.37,33.24326326]
[1730677186549,0.3182166,162.39,162.37,21.5552]
[1730677187851,0.3182166,162.39,162.37,15.3965]
[1730677188741,0.3182166,162.39,162.37,27.08456326]
[1730677189634,0.3182166,162.39,162.37,21.5552]
[1730677190351,0.3182166,162.39,162.37,33.24326326]
[1730677192935,0.3182166,162.39,162.36,11.68806326]
[1730677194357,0.3182166,162.39,162.37,21.5556]
[1730677196150,0.3182166,162.39,162.37,11.68806326]
[1730677196865,0.3182166,162.39,162.36,11.68806326]
[1730677197155,0.3182166,162.39,162.37,21.5556]
[1730677197476,0.3182166,162.39,162.37,33.24366326]
[1730677199946,0.3182166,162.39,162.38,35.46494726]
[1730677201165,0.3182166,162.39,162.38,41.62324726]
[1730677203347,0.3182166,162.39,162.38,41.74873726]
[1730677206772,0.3182166,162.39,162.38,41.62324726]
[1730677206944,0.3182166,162.39,162.38,17.84636326]
[1730677209457,0.3182166,162.39,162.38,41.74873726]
[1730677213574,0.3182166,162.39,162.38,41.62324726]
[1730677213955,0.3182166,162.39,162.38,41.74873726]
[1730677214267,0.3182166,162.47,162.41,0.1]
[1730677214462,0.3182166,162.47,162.45,11.68806326]
[1730677215468,0.3182166,162.47,162.46,11.68806326]
[1730677216449,0.3182166,162.47,162.46,17.84336326]
[1730677216650,0.3182166,162.47,162.46,41.62024726]
[1730677218070,0.3182166,162.47,162.46,41.84573726]
[1730677218880,0.3182166,162.47,162.46,17.84336326]
[1730677221152,0.3182166,162.47,162.45,11.68806326]
[1730677221378,12.00627986,162.47,162.44,15.3902]
[1730677221678,0.3182166,162.47,162.44,33.23436326]
[1730677222776,0.3182166,162.47,162.46,11.68806326]
[1730677224066,0.3182166,162.47,162.46,17.84336326]
[1730677226476,0.3182166,162.47,162.46,41.74573726]
[1730677226653,0.3182166,162.47,162.46,41.84573726]
[1730677227560,0.3182166,162.47,162.46,41.94573726]
[1730677228451,0.3182166,162.47,162.46,95.0691903]
[1730677229771,0.3182166,162.47,162.46,48.31693726]
[1730677230559,0.3182166,162.47,162.46,60.00500052]
[1730677230764,0.3182166,162.47,162.46,95.0691903]
[1730677231181,0.3182166,162.47,162.46,48.31693726]
[1730677231486,0.3182166,162.47,162.46,95.0691903]
[1730677231677,0.3182166,162.47,162.46,48.31693726]
[1730677232178,0.3182166,162.47,162.46,95.0691903]
[1730677233170,0.3182166,162.47,162.46,48.31693726]
[1730677234180,0.3182166,162.47,162.46,114.9691903]
[1730677234382,0.3182166,162.55,162.53,11.68806326]
[1730677234579,0.3182166,162.55,162.52,11.68806326]
[1730677235787,0.3182166,162.55,162.53,6.1527]
[1730677236087,0.3182166,162.55,162.53,17.84076326]
[1730677236684,0.3182166,162.55,162.53,33.22246326]
[1730677241584,0.3182166,162.55,162.54,11.68806326]
[1730677241788,0.3182166,162.55,162.54,35.46494726]
[1730677241988,0.3182166,162.55,162.54,35.59043726]
[1730677242877,0.3182166,162.55,162.54,35.69043726]
[1730677243273,0.3182166,162.55,162.54,82.5426903]
[1730677243589,0.3182166,162.55,162.54,88.6949903]
[1730677244188,0.3182166,162.63,162.58,0.1]
[1730677244386,0.3182166,162.63,162.62,11.68806326]
[1730677245064,0.3182166,162.63,162.62,35.46494726]
[1730677245697,0.3182166,162.63,162.62,41.61424726]
[1730677245986,27.33166326,162.7,162.62,56.98744726]
[1730677245987,25.14987986,162.7,162.62,56.98744726]
[1730677246179,11.68806326,162.68,162.62,33.21056326]
[1730677246695,11.68806326,162.67,162.62,33.21056326]
[1730677247786,17.83516326,162.68,162.62,33.21056326]
[1730677248092,11.68806326,162.67,162.62,33.21056326]
[1730677250694,17.83506326,162.68,162.63,11.68806326]
[1730677253293,11.68806326,162.67,162.64,15.3704]
[1730677253484,11.68806326,162.68,162.64,21.5189]
[1730677253890,11.68806326,162.69,162.64,21.5189]
[1730677254481,11.68806326,162.69,162.64,33.20696326]
[1730677255203,25.14987986,162.7,162.64,33.20696326]
[1730677255503,11.68806326,162.71,162.65,11.68806326]
[1730677256503,11.68806326,162.7,162.66,21.5171]
[1730677256889,11.68806326,162.68,162.66,21.5171]
[1730677258090,11.68806326,162.69,162.64,11.68806326]
[1730677258402,11.68806326,162.68,162.63,11.68806326]
[1730677259185,11.68806326,162.69,162.64,27.05936326]
[1730677259498,11.68806326,162.67,162.62,17.83736326]
[1730677259707,11.68806326,162.68,162.63,11.68806326]
[1730677259897,11.68806326,162.69,162.63,11.68806326]
[1730677260093,6.1461,162.71,162.58,0.12549]
[1730677260398,11.68806326,162.68,162.63,11.68806326]
[1730677261199,6.1461,162.71,162.64,11.68806326]
[1730677261200,11.68806326,162.69,162.64,11.68806326]
[1730677261899,11.68806326,162.68,162.63,11.68806326]
[1730677262204,11.68806326,162.69,162.64,11.68806326]
[1730677262587,11.68806326,162.7,162.64,11.68806326]
[1730677263106,11.68806326,162.69,162.64,11.68806326]
[1730677263802,11.68806326,162.71,162.66,11.68806326]
[1730677264588,11.68806326,162.71,162.67,21.5159]
[1730677265093,18.97027832,162.72,162.67,33.20396326]
[1730677265489,18.97027832,162.72,162.68,11.68806326]
[1730677265490,0.3182166,162.72,162.68,11.68806326]
[1730677266686,0.3182166,162.72,162.69,6.1466]
[1730677267308,0.3182166,162.72,162.69,21.5132]
[1730677268185,12.00627986,162.72,162.69,21.5132]
[1730677268700,12.00627986,162.72,162.69,15.3666]
[1730677268991,11.68806326,162.71,162.69,15.3666]
[1730677269890,0.3182166,162.72,162.7,11.68806326]
[1730677270280,0.3182166,162.72,162.69,15.3666]
[1730677270695,11.68806326,162.71,162.69,15.3666]
[1730677270907,11.68806326,162.7,162.65,15.3697]
[1730677271218,11.68806326,162.67,162.65,15.3697]
[1730677273111,11.68806326,162.68,162.65,15.3697]
[1730677273310,18.16666963,162.66,162.62,15.3731]
[1730677273494,18.16666963,162.65,162.62,15.3731]
[1730677274311,18.16666963,162.66,162.62,15.3731]
[1730677274513,18.16666963,162.67,162.62,15.3731]
[1730677275608,18.16666963,162.67,162.62,21.5224]
[1730677276012,18.16666963,162.69,162.64,18.16666963]
[1730677276191,18.16666963,162.69,162.63,18.16666963]
[1730677276388,18.16666963,162.68,162.63,18.16666963]
[1730677277116,33.67028623,162.72,162.63,18.16666963]
[1730677277117,18.16666963,162.69,162.65,23.776884]
[1730677277295,18.16666963,162.7,162.65,23.776884]
[1730677277499,18.16666963,162.69,162.64,21.5198]
[1730677280416,18.16666963,162.7,162.64,33.53796963]
[1730677281502,18.16666963,162.7,162.64,39.68646963]
[1730677281803,18.16666963,162.67,162.64,21.5198]
[1730677282125,18.16666963,162.68,162.64,21.5198]
[1730677283113,18.16666963,162.69,162.64,21.5198]
[1730677283431,18.16666963,162.68,162.64,21.5198]
[1730677284201,18.16666963,162.68,162.64,15.3713]
[1730677285225,18.16666963,162.69,162.64,15.3713]
[1730677285409,18.16666963,162.68,162.64,15.3713]
[1730677287908,18.16666963,162.69,162.64,15.3713]
[1730677288125,18.16666963,162.68,162.64,15.3713]
[1730677288306,18.16666963,162.67,162.64,15.3713]
[1730677289036,18.16666963,162.65,162.6,6.42173098]
[1730677289201,18.16666963,162.63,162.61,15.374]
[1730677289525,18.16666963,162.62,162.59,6.1504]
[1730677289900,18.16666963,162.63,162.59,21.5264]
[1730677290317,18.16666963,162.62,162.59,21.5264]
[1730677290803,18.16666963,162.63,162.59,15.376]
[1730677291325,18.16666963,162.62,162.59,15.376]
[1730677293331,11.63152355,162.62,162.59,15.376]
[1730677293999,11.63152355,162.63,162.59,15.376]
[1730677294928,11.63152355,162.67,162.61,11.63152355]
[1730677295098,11.63152355,162.67,162.62,11.63152355]
[1730677295300,11.63152355,162.67,162.61,11.63152355]
[1730677295499,11.63152355,162.68,162.63,11.63152355]
[1730677295721,11.63152355,162.69,162.63,11.63152355]
[1730677296305,11.63152355,162.7,162.64,33.15132355]
[1730677296512,11.63152355,162.7,162.65,11.63152355]
[1730677296921,11.63152355,162.7,162.64,21.5198]
[1730677296922,11.63152355,162.7,162.64,33.15132355]
[1730677297120,11.63152355,162.69,162.64,21.5198]
[1730677297413,18.1592739,162.69,162.64,15.3713]
[1730677297614,18.1592739,162.69,162.65,23.776884]
[1730677297932,18.1592739,162.69,162.64,33.5305739]
[1730677298231,18.1592739,162.68,162.64,15.3713]
[1730677299524,24.3063739,162.68,162.64,15.3713]
[1730677300110,18.1592739,162.69,162.64,15.3713]
[1730677300638,18.1592739,162.68,162.64,15.3713]
[1730677301618,18.1592739,162.68,162.64,21.5198]
[1730677302254,18.1592739,162.69,162.64,39.6790739]
[1730677302552,18.1592739,162.68,162.64,15.3713]
[1730677302908,18.1592739,162.69,162.64,15.3713]
[1730677303509,18.1592739,162.69,162.64,21.5198]
[1730677304328,18.1592739,162.69,162.65,23.776884]
[1730677304629,18.1592739,162.7,162.65,23.776884]
[1730677305419,18.1592739,162.7,162.66,6.1477]
[1730677307112,6.4637166,162.72,162.66,39.6763739]
[1730677307113,18.1592739,162.71,162.66,39.6763739]
[1730677308226,24.6229905,162.72,162.66,39.6763739]
[1730677308933,0.3182166,162.72,162.67,41.9361579]
[1730677310029,18.4774905,162.72,162.68,6.147]
[1730677311245,0.3182166,162.72,162.68,21.5145]
[1730677312617,0.3182166,162.72,162.71,18.1592739]
[1730677313022,0.3182166,162.72,162.7,18.1592739]
[1730677313551,0.3182166,162.72,162.71,18.1592739]
[1730677314432,0.3182166,162.72,162.71,24.3051739]
[1730677315839,0.3182166,162.72,162.71,48.0820579]
[1730677317142,0.3182166,162.72,162.69,21.5132]
[1730677317857,0.3182166,162.72,162.69,39.6724739]
[1730677318828,18.4774905,162.72,162.69,21.5132]
[1730677319029,0.3182166,162.72,162.69,21.5132]
[1730677319416,0.3182166,162.72,162.69,33.12889171]
[1730677319621,0.3182166,162.72,162.7,11.61569171]
[1730677319823,0.3182166,162.72,162.69,33.12889171]
[1730677320239,0.3182166,162.72,162.69,21.5132]
[1730677322136,0.3182166,162.72,162.69,39.66187188]
[1730677322338,0.3182166,162.72,162.69,21.5132]
[1730677322836,18.14867188,162.7,162.66,21.5164]
[1730677323050,18.14867188,162.71,162.66,39.66507188]
[1730677323233,18.14867188,162.7,162.66,21.5164]
[1730677323628,18.14867188,162.69,162.66,21.5164]
[1730677323826,18.14867188,162.68,162.64,6.41566831]
[1730677324041,18.14867188,162.69,162.64,30.71274019]
[1730677324434,18.46688848,162.72,162.66,18.14867188]
[1730677324941,18.14867188,162.71,162.65,41.92555588]
[1730677325243,24.61268848,162.72,162.66,18.14867188]
[1730677326050,24.61268848,162.72,162.67,6.1474]